[Event "Late-Titled-Tuesday-Blitz-June-04-2024"]
[Site "Chess.com"]
[Date "2024.06.04"]
[Round "11"]
[White "Cambek64"]
[Black "mfschulz"]
[Result "1-0"]
[WhiteElo "2497"]
[BlackElo "2240"]
[TimeControl "180+1"]
[EndTime "16:07:20 PDT"]
[Termination "Cambek64 won on time"]

1. b3 {[%clk 0:03:00.9]} 1... Nf6 {[%clk 0:02:20.1]} 2. Bb2 {[%clk 0:03:01.6]}
2... g6 {[%clk 0:02:18.9]} 3. Bxf6 {[%clk 0:03:01.1]} 3... exf6 {[%clk
0:02:18.3]} 4. d4 {[%clk 0:03:01.8]} 4... Bg7 {[%clk 0:02:18.2]} 5. e3 {[%clk
0:03:02.5]} 5... O-O {[%clk 0:02:18.2]} 6. g3 {[%clk 0:03:03.3]} 6... f5 {[%clk
0:02:18]} 7. Bg2 {[%clk 0:03:03.6]} 7... c6 {[%clk 0:02:17.9]} 8. Ne2 {[%clk
0:03:04]} 8... d5 {[%clk 0:02:18.1]} 9. O-O {[%clk 0:03:04.3]} 9... Nd7 {[%clk
0:02:18.2]} 10. c4 {[%clk 0:03:04.7]} 10... Nf6 {[%clk 0:02:18]} 11. Nbc3 {[%clk
0:03:05]} 11... Ne4 {[%clk 0:02:17.7]} 12. Nxd5 {[%clk 0:03:04.6]} 12... cxd5
{[%clk 0:02:17.1]} 13. c5 {[%clk 0:03:01.4]} 13... Bd7 {[%clk 0:02:15.5]} 14.
Re1 {[%clk 0:02:55]} 14... a5 {[%clk 0:02:13.6]} 15. Nf4 {[%clk 0:02:54.6]}
15... Bb5 {[%clk 0:02:12.4]} 16. a3 {[%clk 0:02:51.9]} 16... Bh6 {[%clk
0:02:09.2]} 17. Nd3 {[%clk 0:02:46.7]} 17... Bxd3 {[%clk 0:02:07.9]} 18. Qxd3
{[%clk 0:02:47.4]} 18... Qd7 {[%clk 0:02:03.4]} 19. b4 {[%clk 0:02:46]} 19...
axb4 {[%clk 0:02:02.5]} 20. axb4 {[%clk 0:02:46.7]} 20... Rfe8 {[%clk
0:01:53.6]} 21. b5 {[%clk 0:02:45.2]} 21... Bf8 {[%clk 0:01:52.6]} 22. b6 {[%clk
0:02:43]} 22... Qc6 {[%clk 0:01:51.6]} 23. Bf1 {[%clk 0:02:39.7]} 23... Ng5
{[%clk 0:01:48.7]} 24. Kg2 {[%clk 0:02:37.8]} 24... Qe6 {[%clk 0:01:45.8]} 25.
h4 {[%clk 0:01:34.8]} 25... Qe4+ {[%clk 0:01:41.5]} 26. Qxe4 {[%clk 0:01:35.4]}
26... Nxe4 {[%clk 0:01:41.2]} 27. Bb5 {[%clk 0:01:34.3]} 27... Rec8 {[%clk
0:01:35]} 28. Ra7 {[%clk 0:01:34.3]} 28... Rxa7 {[%clk 0:01:34.2]} 29. bxa7
{[%clk 0:01:33.6]} 29... Ra8 {[%clk 0:01:34.1]} 30. Ra1 {[%clk 0:01:33.8]} 30...
Nxc5 {[%clk 0:01:32.9]} 31. dxc5 {[%clk 0:01:32.6]} 31... Bxc5 {[%clk
0:01:32.9]} 32. Rd1 {[%clk 0:01:28.6]} 32... Rxa7 {[%clk 0:01:26.6]} 33. Rxd5
{[%clk 0:01:28.5]} 33... b6 {[%clk 0:01:26.6]} 34. h5 {[%clk 0:01:23.5]} 34...
Kg7 {[%clk 0:01:25.8]} 35. Kf3 {[%clk 0:01:22.3]} 35... Re7 {[%clk 0:01:22.3]}
36. Bc4 {[%clk 0:01:19.2]} 36... Kf6 {[%clk 0:01:17.5]} 37. hxg6 {[%clk
0:00:49.1]} 37... fxg6 {[%clk 0:01:14.2]} 38. Ke2 {[%clk 0:00:42.6]} 38... h5
{[%clk 0:01:10.6]} 39. Bd3 {[%clk 0:00:39.1]} 39... Ra7 {[%clk 0:01:00.6]} 40.
Rd7 {[%clk 0:00:37.1]} 40... Ra2+ {[%clk 0:00:59.4]} 41. Kf3 {[%clk 0:00:35.8]}
41... g5 {[%clk 0:00:55.2]} 42. Rd5 {[%clk 0:00:32.9]} 42... g4+ {[%clk
0:00:54.6]} 43. Kg2 {[%clk 0:00:32.9]} 43... f4 {[%clk 0:00:51.7]} 44. Rf5+
{[%clk 0:00:26.7]} 44... Kg7 {[%clk 0:00:44.6]} 45. Rxf4 {[%clk 0:00:17.1]}
45... Bxe3 {[%clk 0:00:44.1]} 46. Rf5 {[%clk 0:00:17.4]} 46... Bc5 {[%clk
0:00:38.4]} 47. Kf1 {[%clk 0:00:17.2]} 47... Rd2 {[%clk 0:00:28.9]} 48. Be4
{[%clk 0:00:15.6]} 48... Rd4 {[%clk 0:00:26.1]} 49. Bc2 {[%clk 0:00:13.9]} 49...
Rd2 {[%clk 0:00:24.2]} 50. Bb3 {[%clk 0:00:12.3]} 50... Kg6 {[%clk 0:00:23]} 51.
Rf4 {[%clk 0:00:11.3]} 51... Kg5 {[%clk 0:00:19.8]} 52. Rf7 {[%clk 0:00:10.6]}
52... Rd3 {[%clk 0:00:09.3]} 53. Be6 {[%clk 0:00:08.2]} 53... Rf3 {[%clk
0:00:09]} 54. Rxf3 {[%clk 0:00:07.7]} 54... gxf3 {[%clk 0:00:07.9]} 55. Bd7
{[%clk 0:00:06.7]} 55... h4 {[%clk 0:00:07.1]} 56. gxh4+ {[%clk 0:00:06.2]}
56... Kxh4 {[%clk 0:00:07.1]} 57. Kg1 {[%clk 0:00:02.5]} 57... Bd4 {[%clk
0:00:04.7]} 58. Kf1 {[%clk 0:00:02.4]} 58... Kg5 {[%clk 0:00:03.7]} 59. Kg1
{[%clk 0:00:02.8]} 59... Kf4 {[%clk 0:00:03.9]} 60. Kf1 {[%clk 0:00:03.4]} 60...
Be5 {[%clk 0:00:03.4]} 61. Ke1 {[%clk 0:00:03.1]} 61... Bd6 {[%clk 0:00:03.5]}
62. Kd2 {[%clk 0:00:02.8]} 62... Bc5 {[%clk 0:00:03.6]} 63. Ke1 {[%clk
0:00:03.3]} 63... Bb4+ {[%clk 0:00:03.6]} 64. Kf1 {[%clk 0:00:03.7]} 64... Bc3
{[%clk 0:00:03.6]} 65. Bc6 {[%clk 0:00:02.9]} 65... Bd4 {[%clk 0:00:02.4]} 66.
Kg1 {[%clk 0:00:02.6]} 1-0

[Event "Late-Titled-Tuesday-Blitz-June-04-2024"]
[Site "Chess.com"]
[Date "2024.06.04"]
[Round "11"]
[White "ZverevLev"]
[Black "MatthewG-p4p"]
[Result "1-0"]
[WhiteElo "2686"]
[BlackElo "2867"]
[TimeControl "180+1"]
[EndTime "16:07:33 PDT"]
[Termination "ZverevLev won by resignation"]

1. e4 {[%clk 0:03:00.9]} 1... e6 {[%clk 0:02:59.3]} 2. d4 {[%clk 0:03:00.1]}
2... d5 {[%clk 0:02:59.9]} 3. Nc3 {[%clk 0:02:59.2]} 3... Bb4 {[%clk 0:02:59.7]}
4. e5 {[%clk 0:02:57.9]} 4... Ne7 {[%clk 0:02:59.4]} 5. a3 {[%clk 0:02:57.3]}
5... Bxc3+ {[%clk 0:02:59.7]} 6. bxc3 {[%clk 0:02:58.2]} 6... c5 {[%clk
0:03:00.3]} 7. Qg4 {[%clk 0:02:58.5]} 7... cxd4 {[%clk 0:02:58.6]} 8. Qxg7
{[%clk 0:02:58]} 8... Rg8 {[%clk 0:02:58.8]} 9. Qxh7 {[%clk 0:02:58.2]} 9... Qc7
{[%clk 0:02:59.6]} 10. Qd3 {[%clk 0:02:58.1]} 10... Qxe5+ {[%clk 0:02:51.7]} 11.
Ne2 {[%clk 0:02:56.9]} 11... dxc3 {[%clk 0:02:52.1]} 12. Qxc3 {[%clk 0:02:57.8]}
12... Qxc3+ {[%clk 0:02:52.4]} 13. Nxc3 {[%clk 0:02:58.7]} 13... Nbc6 {[%clk
0:02:53.1]} 14. Bb2 {[%clk 0:02:56.4]} 14... e5 {[%clk 0:02:41.3]} 15. O-O-O
{[%clk 0:02:54.2]} 15... Be6 {[%clk 0:02:40.5]} 16. h4 {[%clk 0:02:53.9]} 16...
O-O-O {[%clk 0:02:33.8]} 17. g3 {[%clk 0:02:43.2]} 17... d4 {[%clk 0:02:08.3]}
18. Ne4 {[%clk 0:02:37.8]} 18... Bd5 {[%clk 0:02:07.5]} 19. Bh3+ {[%clk
0:02:28]} 19... Kb8 {[%clk 0:01:51.9]} 20. Nf6 {[%clk 0:02:21.7]} 20... Bxh1
{[%clk 0:01:48.8]} 21. Nxg8 {[%clk 0:02:21.7]} 21... Bf3 {[%clk 0:01:48.6]} 22.
Nxe7 {[%clk 0:02:21.9]} 22... Nxe7 {[%clk 0:01:48.7]} 23. Re1 {[%clk 0:02:21.2]}
23... f6 {[%clk 0:01:44.7]} 24. Bf1 {[%clk 0:02:08.4]} 24... Kc7 {[%clk
0:01:37.7]} 25. Be2 {[%clk 0:02:08.1]} 25... Bxe2 {[%clk 0:01:36.5]} 26. Rxe2
{[%clk 0:02:09]} 26... Kd6 {[%clk 0:01:32.7]} 27. Kd2 {[%clk 0:01:57.3]} 27...
Rg8 {[%clk 0:01:31.4]} 28. Re1 {[%clk 0:01:54.8]} 28... Kd5 {[%clk 0:01:15.3]}
29. h5 {[%clk 0:01:35.5]} 29... Nf5 {[%clk 0:01:15.5]} 30. Kd3 {[%clk
0:01:22.6]} 30... Nd6 {[%clk 0:01:12.9]} 31. h6 {[%clk 0:01:15.1]} 31... e4+
{[%clk 0:01:13.2]} 32. Ke2 {[%clk 0:01:13.8]} 32... Rh8 {[%clk 0:01:07.2]} 33.
Rd1 {[%clk 0:01:06.4]} 33... Rxh6 {[%clk 0:01:01.4]} 34. Bxd4 {[%clk 0:01:03.5]}
34... Ke6 {[%clk 0:00:48.6]} 35. Bc5 {[%clk 0:00:49.6]} 35... Nb5 {[%clk
0:00:46.5]} 36. Ke3 {[%clk 0:00:43.6]} 36... b6 {[%clk 0:00:46.9]} 37. Bb4
{[%clk 0:00:25.9]} 37... a5 {[%clk 0:00:43.5]} 38. Bf8 {[%clk 0:00:19.1]} 38...
Rh8 {[%clk 0:00:43.1]} 39. Rb1 {[%clk 0:00:18.8]} 39... Nc3 {[%clk 0:00:38.1]}
40. Rxb6+ {[%clk 0:00:14.5]} 40... Kf5 {[%clk 0:00:20.7]} 41. Bg7 {[%clk
0:00:08.5]} 41... Nd5+ {[%clk 0:00:17]} 42. Kd4 {[%clk 0:00:08.1]} 42... Rd8
{[%clk 0:00:13.8]} 43. Rb7 {[%clk 0:00:06.8]} 43... Nf4+ {[%clk 0:00:08.7]} 44.
Ke3 {[%clk 0:00:06.1]} 44... Ne6 {[%clk 0:00:08.7]} 45. Bh6 {[%clk 0:00:04.8]}
45... Rc8 {[%clk 0:00:08.4]} 46. Rb5+ {[%clk 0:00:03.7]} 46... Kg6 {[%clk
0:00:08.6]} 47. Bf4 {[%clk 0:00:03.7]} 47... f5 {[%clk 0:00:08.6]} 48. Rxa5
{[%clk 0:00:03.1]} 48... Rxc2 {[%clk 0:00:08]} 49. Ra6 {[%clk 0:00:03.4]} 49...
Kf7 {[%clk 0:00:08.7]} 50. a4 {[%clk 0:00:02.8]} 50... Ra2 {[%clk 0:00:08.2]}
51. Ra7+ {[%clk 0:00:02.8]} 51... Kf6 {[%clk 0:00:08.4]} 52. Ra6 {[%clk
0:00:03.7]} 52... Ke7 {[%clk 0:00:06.5]} 53. Be5 {[%clk 0:00:02.8]} 53... Kd7
{[%clk 0:00:05.1]} 54. Rd6+ {[%clk 0:00:02.1]} 54... Ke7 {[%clk 0:00:05.8]} 55.
Ra6 {[%clk 0:00:03]} 55... Kf7 {[%clk 0:00:05.1]} 56. Ra7+ {[%clk 0:00:03.3]}
56... Ke8 {[%clk 0:00:05.3]} 57. a5 {[%clk 0:00:02.8]} 57... Ra3+ {[%clk
0:00:04.2]} 58. Ke2 {[%clk 0:00:02.8]} 58... Ra4 {[%clk 0:00:04.6]} 59. Ke3
{[%clk 0:00:02.6]} 59... Ra2 {[%clk 0:00:02.9]} 60. g4 {[%clk 0:00:02.4]} 60...
Ra3+ {[%clk 0:00:02.6]} 61. Kd2 {[%clk 0:00:02.7]} 61... fxg4 {[%clk 0:00:03.1]}
62. a6 {[%clk 0:00:02]} 62... Nc5 {[%clk 0:00:02.7]} 63. Ra8+ {[%clk 0:00:02.4]}
63... Kd7 {[%clk 0:00:03]} 64. a7 {[%clk 0:00:03.3]} 64... Ra2+ {[%clk
0:00:02.8]} 65. Ke3 {[%clk 0:00:03.1]} 65... Nb7 {[%clk 0:00:02.7]} 66. Bd4
{[%clk 0:00:02]} 66... Kc6 {[%clk 0:00:01.8]} 67. Rc8+ {[%clk 0:00:01.9]} 67...
Kd7 {[%clk 0:00:02.3]} 68. a8=Q {[%clk 0:00:02.8]} 68... Rxa8 {[%clk 0:00:02.9]}
69. Rxa8 {[%clk 0:00:03.1]} 69... Nd6 {[%clk 0:00:03.8]} 70. Ra7+ {[%clk
0:00:04]} 70... Ke6 {[%clk 0:00:04.4]} 71. Ra6 {[%clk 0:00:04.6]} 71... Kd5
{[%clk 0:00:05.1]} 72. Rxd6+ {[%clk 0:00:05.1]} 72... Kxd6 {[%clk 0:00:05.6]}
73. Kxe4 {[%clk 0:00:06]} 73... g3 {[%clk 0:00:06.5]} 74. Be5+ {[%clk
0:00:06.3]} 74... Ke6 {[%clk 0:00:06.7]} 75. Bxg3 {[%clk 0:00:07.2]} 75... Kf6
{[%clk 0:00:07.6]} 76. f4 {[%clk 0:00:07.7]} 76... Kg7 {[%clk 0:00:08.5]} 77. f5
{[%clk 0:00:08.6]} 77... Kf7 {[%clk 0:00:09.4]} 78. Ke5 {[%clk 0:00:09]} 78...
Kg7 {[%clk 0:00:10.3]} 79. f6+ {[%clk 0:00:09.6]} 79... Kf7 {[%clk 0:00:11.2]}
80. Kf5 {[%clk 0:00:10]} 80... Kf8 {[%clk 0:00:11.5]} 81. Ke6 {[%clk 0:00:10.9]}
81... Kg8 {[%clk 0:00:12.4]} 82. f7+ {[%clk 0:00:10.9]} 82... Kg7 {[%clk
0:00:12.9]} 83. Be5+ {[%clk 0:00:10.6]} 83... Kf8 {[%clk 0:00:13]} 84. Bd6+
{[%clk 0:00:11]} 84... Kg7 {[%clk 0:00:13.9]} 85. f8=Q+ {[%clk 0:00:10.5]} 85...
Kh7 {[%clk 0:00:14.8]} 86. Qf7+ {[%clk 0:00:09.4]} 1-0

[Event "Late-Titled-Tuesday-Blitz-June-04-2024"]
[Site "Chess.com"]
[Date "2024.06.04"]
[Round "11"]
[White "andrejljepic"]
[Black "ansko1999"]
[Result "1/2-1/2"]
[WhiteElo "2442"]
[BlackElo "2621"]
[TimeControl "180+1"]
[EndTime "16:08:17 PDT"]
[Termination "Game drawn - insufficient material"]

1. d4 {[%clk 0:03:00.9]} 1... d5 {[%clk 0:02:59.9]} 2. Bf4 {[%clk 0:02:59.8]}
2... c5 {[%clk 0:02:59]} 3. e3 {[%clk 0:02:59.6]} 3... Nc6 {[%clk 0:02:57.4]} 4.
Nf3 {[%clk 0:03:00]} 4... cxd4 {[%clk 0:02:55.8]} 5. exd4 {[%clk 0:02:59.7]}
5... Qb6 {[%clk 0:02:56.2]} 6. Nc3 {[%clk 0:02:52.6]} 6... Nf6 {[%clk
0:02:52.1]} 7. Nb5 {[%clk 0:02:48.3]} 7... e5 {[%clk 0:02:46.6]} 8. Nxe5 {[%clk
0:02:37.7]} 8... a6 {[%clk 0:02:31.9]} 9. Nxc6 {[%clk 0:01:52.9]} 9... axb5
{[%clk 0:02:29.5]} 10. Ne5 {[%clk 0:01:53.5]} 10... Bd6 {[%clk 0:02:22.9]} 11.
Bd3 {[%clk 0:01:50.7]} 11... O-O {[%clk 0:02:21]} 12. O-O {[%clk 0:01:49.5]}
12... b4 {[%clk 0:02:16.6]} 13. c3 {[%clk 0:01:45.6]} 13... bxc3 {[%clk
0:02:15.9]} 14. bxc3 {[%clk 0:01:46.5]} 14... Be6 {[%clk 0:01:59.5]} 15. Qb3
{[%clk 0:01:46.4]} 15... Qc7 {[%clk 0:01:55.6]} 16. a4 {[%clk 0:01:41.7]} 16...
Nh5 {[%clk 0:01:50.9]} 17. Bd2 {[%clk 0:01:16.7]} 17... Bxe5 {[%clk 0:01:43.1]}
18. dxe5 {[%clk 0:01:16.9]} 18... Qxe5 {[%clk 0:01:43.1]} 19. Rfe1 {[%clk
0:01:15.9]} 19... Qc7 {[%clk 0:01:39]} 20. Qb4 {[%clk 0:01:15.8]} 20... Nf6
{[%clk 0:01:35.9]} 21. Qd4 {[%clk 0:01:15.7]} 21... Ne4 {[%clk 0:01:28.5]} 22.
Bxe4 {[%clk 0:01:09.7]} 22... dxe4 {[%clk 0:01:29.4]} 23. Qxe4 {[%clk
0:01:08.3]} 23... Rfd8 {[%clk 0:01:20.6]} 24. Bf4 {[%clk 0:00:50]} 24... Qxc3
{[%clk 0:01:18.2]} 25. Be5 {[%clk 0:00:50.3]} 25... Qd3 {[%clk 0:01:12.3]} 26.
Qxb7 {[%clk 0:00:47.3]} 26... Bd5 {[%clk 0:01:10.5]} 27. Qe7 {[%clk 0:00:31.7]}
27... Qg6 {[%clk 0:01:08.1]} 28. Bg3 {[%clk 0:00:31.9]} 28... h5 {[%clk
0:01:00.9]} 29. a5 {[%clk 0:00:31.8]} 29... Re8 {[%clk 0:00:53.4]} 30. Qxe8+
{[%clk 0:00:31.3]} 30... Rxe8 {[%clk 0:00:54.3]} 31. Rxe8+ {[%clk 0:00:31.1]}
31... Kh7 {[%clk 0:00:55.2]} 32. h4 {[%clk 0:00:29.9]} 32... Qc6 {[%clk
0:00:49.2]} 33. a6 {[%clk 0:00:27.7]} 33... Qxe8 {[%clk 0:00:48.5]} 34. a7
{[%clk 0:00:24.1]} 34... Ba8 {[%clk 0:00:48.5]} 35. f3 {[%clk 0:00:20.9]} 35...
Qe3+ {[%clk 0:00:47.5]} 36. Bf2 {[%clk 0:00:20.7]} 36... Qc3 {[%clk 0:00:45.1]}
37. Rb1 {[%clk 0:00:20.7]} 37... Qc6 {[%clk 0:00:38.9]} 38. Rb6 {[%clk
0:00:19.7]} 38... Qc1+ {[%clk 0:00:37.5]} 39. Kh2 {[%clk 0:00:19.9]} 39... Qc7+
{[%clk 0:00:38.1]} 40. Kg1 {[%clk 0:00:18.2]} 40... f6 {[%clk 0:00:35.2]} 41.
Rb8 {[%clk 0:00:17.4]} 41... Qc1+ {[%clk 0:00:34.5]} 42. Kh2 {[%clk 0:00:17.3]}
42... Qc7+ {[%clk 0:00:35.1]} 43. Kg1 {[%clk 0:00:06.5]} 43... Qc6 {[%clk
0:00:35.5]} 44. Kh2 {[%clk 0:00:06.6]} 44... Kg6 {[%clk 0:00:35]} 45. Kg1 {[%clk
0:00:07.4]} 45... Qc1+ {[%clk 0:00:25.4]} 46. Kh2 {[%clk 0:00:07.7]} 46... Qc7+
{[%clk 0:00:25.7]} 47. Kg1 {[%clk 0:00:08.3]} 47... Qc6 {[%clk 0:00:24.1]} 48.
Kh2 {[%clk 0:00:08.2]} 48... Kf5 {[%clk 0:00:23.2]} 49. Kg1 {[%clk 0:00:08.8]}
49... Qc1+ {[%clk 0:00:22.4]} 50. Kh2 {[%clk 0:00:09.2]} 50... Qc7+ {[%clk
0:00:23]} 51. Kg1 {[%clk 0:00:09.5]} 51... Qc6 {[%clk 0:00:23.1]} 52. Kh2 {[%clk
0:00:09.4]} 52... g5 {[%clk 0:00:17.7]} 53. hxg5 {[%clk 0:00:07.3]} 53... fxg5
{[%clk 0:00:18.3]} 54. Rf8+ {[%clk 0:00:07.8]} 54... Kg6 {[%clk 0:00:18.1]} 55.
Rb8 {[%clk 0:00:07.5]} 55... Qc7+ {[%clk 0:00:17.2]} 56. Kg1 {[%clk 0:00:06.2]}
56... Qc1+ {[%clk 0:00:17.6]} 57. Kh2 {[%clk 0:00:05.9]} 57... Qc6 {[%clk
0:00:17.9]} 58. Rb6 {[%clk 0:00:06.1]} 58... Kf5 {[%clk 0:00:11.5]} 59. Rxc6
{[%clk 0:00:05.5]} 59... Bxc6 {[%clk 0:00:12.4]} 60. Kg3 {[%clk 0:00:04.7]}
60... Ba8 {[%clk 0:00:11.4]} 61. Be3 {[%clk 0:00:04.1]} 61... Bb7 {[%clk
0:00:11.7]} 62. Kf2 {[%clk 0:00:04.5]} 62... g4 {[%clk 0:00:11.1]} 63. Kg3
{[%clk 0:00:03.6]} 63... gxf3 {[%clk 0:00:11]} 64. gxf3 {[%clk 0:00:04.3]} 64...
Ba8 {[%clk 0:00:10.1]} 65. f4 {[%clk 0:00:04.6]} 65... Bb7 {[%clk 0:00:09.1]}
66. Kh4 {[%clk 0:00:05.2]} 66... Kg6 {[%clk 0:00:09.4]} 67. Bd4 {[%clk
0:00:04.6]} 67... Ba8 {[%clk 0:00:09.3]} 68. Be5 {[%clk 0:00:05.3]} 68... Bb7
{[%clk 0:00:09.7]} 69. Kg3 {[%clk 0:00:06]} 69... Kf5 {[%clk 0:00:09.6]} 70. Kf2
{[%clk 0:00:06.7]} 70... h4 {[%clk 0:00:08.4]} 71. Kg1 {[%clk 0:00:06]} 71...
Kg4 {[%clk 0:00:08]} 72. Kh2 {[%clk 0:00:06.7]} 72... Ba8 {[%clk 0:00:07.6]} 73.
Bd6 {[%clk 0:00:07]} 73... Bb7 {[%clk 0:00:07.9]} 74. Bc7 {[%clk 0:00:07.5]}
74... Ba8 {[%clk 0:00:08.3]} 75. Bd6 {[%clk 0:00:08]} 75... Bb7 {[%clk
0:00:07.5]} 76. Bc7 {[%clk 0:00:08.9]} 76... h3 {[%clk 0:00:07.6]} 77. Bd6
{[%clk 0:00:09.8]} 77... Bc6 {[%clk 0:00:07.6]} 78. Kg1 {[%clk 0:00:10]} 78...
Ba8 {[%clk 0:00:06.5]} 79. Bc7 {[%clk 0:00:10.3]} 79... Bb7 {[%clk 0:00:06.6]}
80. Bb8 {[%clk 0:00:11]} 80... Bc6 {[%clk 0:00:06.7]} 81. Kh2 {[%clk 0:00:11.4]}
81... Ba8 {[%clk 0:00:06.8]} 82. Bc7 {[%clk 0:00:12]} 82... Bb7 {[%clk
0:00:07.2]} 83. Bb8 {[%clk 0:00:12.7]} 83... Be4 {[%clk 0:00:07.7]} 84. Be5
{[%clk 0:00:12.7]} 84... Ba8 {[%clk 0:00:08.2]} 85. Bb8 {[%clk 0:00:13.4]} 85...
Bb7 {[%clk 0:00:08.8]} 86. Kg1 {[%clk 0:00:12.4]} 86... Ba8 {[%clk 0:00:08.7]}
87. Kh2 {[%clk 0:00:11.9]} 87... Bc6 {[%clk 0:00:09.1]} 88. f5 {[%clk
0:00:12.5]} 88... Kxf5 {[%clk 0:00:09]} 89. Kxh3 {[%clk 0:00:12.5]} 89... Ba8
{[%clk 0:00:09.6]} 90. Kg3 {[%clk 0:00:13.2]} 90... Ke6 {[%clk 0:00:10.1]} 91.
Kf2 {[%clk 0:00:13.9]} 91... Kd7 {[%clk 0:00:11]} 92. Ke3 {[%clk 0:00:14.4]}
92... Kc8 {[%clk 0:00:11.9]} 93. Kd4 {[%clk 0:00:15.3]} 93... Kb7 {[%clk
0:00:12.8]} 94. Kc5 {[%clk 0:00:15.6]} 94... Ka6 {[%clk 0:00:12.7]} 95. Kd6
{[%clk 0:00:15.8]} 95... Kb7 {[%clk 0:00:13.3]} 96. Kd7 {[%clk 0:00:16.4]} 96...
Ka6 {[%clk 0:00:13.4]} 97. Kc7 {[%clk 0:00:16.9]} 97... Bh1 {[%clk 0:00:13.6]}
98. Kc8 {[%clk 0:00:16.2]} 98... Bb7+ {[%clk 0:00:13.1]} 99. Kc7 {[%clk
0:00:16.3]} 99... Ba8 {[%clk 0:00:13.6]} 100. Kd6 {[%clk 0:00:16.3]} 100... Kb7
{[%clk 0:00:13.8]} 101. Kc5 {[%clk 0:00:16.7]} 101... Kc8 {[%clk 0:00:14.1]}
102. Kb6 {[%clk 0:00:17.1]} 102... Bh1 {[%clk 0:00:14.2]} 103. Be5 {[%clk
0:00:17.7]} 103... Ba8 {[%clk 0:00:14.3]} 104. Bd4 {[%clk 0:00:18.1]} 104... Bh1
{[%clk 0:00:15.2]} 105. Kc5 {[%clk 0:00:18.3]} 105... Ba8 {[%clk 0:00:16.1]}
106. Kd6 {[%clk 0:00:18.8]} 106... Bh1 {[%clk 0:00:16.7]} 107. Bb6 {[%clk
0:00:19.2]} 107... Ba8 {[%clk 0:00:17.6]} 108. Bc5 {[%clk 0:00:20.1]} 108... Kb7
{[%clk 0:00:18.1]} 109. Kd7 {[%clk 0:00:20.3]} 109... Ka6 {[%clk 0:00:18.3]}
110. Kc7 {[%clk 0:00:20.9]} 110... Bh1 {[%clk 0:00:18.6]} 111. Kb8 {[%clk
0:00:21.1]} 111... Bg2 {[%clk 0:00:19]} 112. Bf2 {[%clk 0:00:19.9]} 112... Kb5
{[%clk 0:00:19.1]} 113. a8=Q {[%clk 0:00:20]} 113... Bxa8 {[%clk 0:00:18.8]}
1/2-1/2